[Event "82nd Italian Championship 2023"]
[Site "Brescia"]
[Date "2023.12.06"]
[Round "8.3"]
[White "Carnicelli, Valerio"]
[Black "Basso, Pier Luigi"]
[Result "1/2-1/2"]
[ECO "C47"]
[WhiteElo "2423"]
[BlackElo "2483"]
[Annotator "RC"]
[PlyCount "22"]
[EventDate "2023.11.28"]
[EventType "tourn"]
[EventCountry "ITA"]
[SourceTitle "playchess.com"]
[Source "ChessBase"]
[SourceQuality "1"]
[TimeControl "40/6000+30:20/3000+30:900+30"]

1. e4 {[%emt 0:00:04]} e5 {[%emt 0:00:07]} 2. Nf3 {[%emt 0:00:05]} Nc6 {[%emt 0:00:05]} 3. Nc3 {[%emt 0:00:06]} Nf6 {[%emt 0:00:06]} 4. d4 {[%emt 0:00:05]} exd4 {[%emt 0:00:06]} 5. Nxd4 {[%emt 0:00:04]} Bb4 {[%emt 0:00:06]} 6. Nxc6 {[%emt 0:00:07]} bxc6 {[%emt 0:00:05]} 7. Bd3 {[%emt 0:00:08]} O-O {[%emt 0:00:09]} 8. O-O {[%emt 0:00:05]} d5 {[%emt 0:00:06]} 9. exd5 {[%emt 0:00:05]} cxd5 {[%emt 0:00:05]} 10. Bg5 {[%emt 0:00:24]} c6 {[%emt 0:00:09]} 11. h3 {[%emt 0:00:16]} h6 {[%emt 0:00:14]} 1/2-1/2

[Event "82nd Italian Championship 2023"]
[Site "Brescia"]
[Date "2023.12.06"]
[Round "8.4"]
[White "Iermito, Sebastian"]
[Black "Lumachi, Gabriele"]
[Result "1/2-1/2"]
[ECO "B44"]
[WhiteElo "2524"]
[BlackElo "2395"]
[Annotator "RC"]
[PlyCount "68"]
[EventDate "2023.11.28"]
[EventType "tourn"]
[EventCountry "ITA"]
[SourceTitle "playchess.com"]
[Source "ChessBase"]
[SourceQuality "1"]
[TimeControl "40/6000+30:20/3000+30:900+30"]

1. Nf3 {[%emt 0:00:02]} Nf6 {[%emt 0:02:34]} 2. c4 {[%emt 0:00:17]} c5 {[%emt 0:00:13]} 3. Nc3 {[%emt 0:00:36]} Nc6 {[%emt 0:00:08]} 4. d4 {[%emt 0:03:55]} cxd4 {[%emt 0:00:16]} 5. Nxd4 {[%emt 0:00:02]} e6 {[%emt 0:00:39]} 6. e4 {[%emt 0:00:27]} Bb4 {[%emt 0:00:41]} 7. Nxc6 {[%emt 0:00:04]} bxc6 {[%emt 0:00:06]} 8. Bd3 {[%emt 0:00:03]} e5 {[%emt 0:00:52]} 9. O-O {[%emt 0:00:05]} O-O {[%emt 0:00:42]} 10. h3 {[%emt 0:00:03]} Re8 {[%emt 0:13:07]} 11. Be3 {[%emt 0:10:22]} d5 {[%emt 0:12:23]} 12. exd5 {[%emt 0:04:01]} Bxc3 {[%emt 0:00:16]} 13. bxc3 {[%emt 0:00:05]} cxd5 {[%emt 0:00:07]} 14. Bg5 {[%emt 0:18:49]} dxc4 {[%emt 0:06:20]} 15. Bxc4 {[%emt 0:01:01]} Be6 {[%emt 0:03:21]} 16. Qxd8 {[%emt 0:14:32]} Raxd8 {[%emt 0:00:17]} 17. Bb5 {[%emt 0:00:07]} Re7 {[%emt 0:26:15]} 18. Rfd1 {[%emt 0:01:03]} Rb8 {[%emt 0:05:19]} 19. c4 {[%emt 0:02:05]} Rc7 {[%emt 0:01:15]} 20. Rac1 {[%emt 0:02:20]} h6 {[%emt 0:06:27]} 21. Be3 {[%emt 0:03:43]} Ne4 {[%emt 0:04:26]} 22. f4 {[%emt 0:07:45]} Nc3 {[%emt 0:12:45]} 23. Rxc3 {[%emt 0:04:38]} Rxb5 {[%emt 0:00:54]} 24. cxb5 {[%emt 0:02:03]} Rxc3 {[%emt 0:00:06]} 25. Bxa7 {[%emt 0:00:13]} Bxa2 {[%emt 0:01:30]} 26. b6 {[%emt 0:27:03]} Rb3 {[%emt 0:00:11]} 27. Rd8+ {[%emt 0:02:12]} Kh7 {[%emt 0:00:06]} 28. Rd7 {[%emt 0:00:56]} Rb1+ {[%emt 0:03:12]} 29. Kh2 {[%emt 0:00:10]} Be6 {[%emt 0:03:04]} 30. Re7 {[%emt 0:00:35]} Rb2 {[%emt 0:02:40]} 31. b7 {[%emt 0:01:28]} Bd5 {[%emt 0:00:17]} 32. b8=Q {[%emt 0:00:12]} Rxg2+ {[%emt 0:00:10]} 33. Kh1 {[%emt 0:00:01]} Rg4+ {[%emt 0:00:33]} 34. Kh2 {[%emt 0:00:08]} Rg2+ {[%emt 0:00:05]} 1/2-1/2

[Event "82nd Italian Championship 2023"]
[Site "Brescia"]
[Date "2023.12.06"]
[Round "8.5"]
[White "David, Alberto"]
[Black "Brunello, Sabino"]
[Result "1/2-1/2"]
[ECO "C43"]
[WhiteElo "2532"]
[BlackElo "2492"]
[Annotator "TA"]
[PlyCount "40"]
[EventDate "2023.11.28"]
[EventType "tourn"]
[EventCountry "ITA"]
[SourceTitle "playchess.com"]
[Source "ChessBase"]
[SourceQuality "1"]
[TimeControl "40/6000+30:20/3000+30:900+30"]

{[%evp 12,27,0,0,0,0,0,0,0,11,0,0,0,8,13,0,14,0]} 1. e4 {[%emt 0:00:04]} e5 {[%emt 0:00:17]} 2. Nf3 {[%emt 0:00:15]} Nf6 {[%emt 0:01:09]} 3. d4 {[%emt 0:01:01]} Nxe4 {[%emt 0:02:41]} 4. Bd3 {[%emt 0:00:37]} d5 {[%emt 0:01:40]} 5. Nxe5 {[%emt 0:01:05]} Nd7 {[%emt 0:00:35]} 6. Nc3 {[%emt 0:12:59]} Nxe5 {[%emt 0:04:44]} 7. dxe5 {[%emt 0:00:06] The position is equal.} Bb4 {[%emt 0:00:07] C43: Petroff Defence: 3 d4.} 8. O-O {[%emt 0:00:33]} Nxc3 {[%emt 0:00:34]} 9. bxc3 {[%emt 0:00:07]} Bxc3 {[%emt 0:00:03]} 10. Rb1 {[%emt 0:00:10]} O-O {[%emt 0:00:12]} (10... Bxe5 $2 11. Re1 $18) 11. Bxh7+ {[%emt 0:00:48][%mdl 64] [#] Decoy} Kxh7 {[%emt 0:00:05]} 12. Qd3+ {[%emt 0:00:04]} Kg8 {[%emt 0:00:04]} 13. Qxc3 {[%emt 0:00:06]} a5 {[%emt 0:00:03] Black is weak on the dark squares} 14. Qg3 {[%emt 0:09:48] [#] Not much happened in this game.   Weighted Error Value: White=0.00 (flawless) /Black=0.03 (flawless)} {Predecessor:} Ra6 $146 15. Bg5 Qd7 16. f4 Qf5 17. Bf6 Qg6 18. Rb3 a4 19. Ra3 Bf5 20. Qf2 Qh6 {½-½ Papp,G (2589)-Bogner,S (2572) Bundesliga 1920 2019 (13.2)} 1/2-1/2

[Event "82nd Italian Championship 2023"]
[Site "Brescia"]
[Date "2023.12.06"]
[Round "8.6"]
[White "Dvirnyy, Danyyil"]
[Black "Lodici, Lorenzo"]
[Result "1/2-1/2"]
[ECO "C72"]
[WhiteElo "2495"]
[BlackElo "2550"]
[Annotator "TA"]
[PlyCount "43"]
[EventDate "2023.11.28"]
[EventType "tourn"]
[EventCountry "ITA"]
[SourceTitle "playchess.com"]
[Source "ChessBase"]
[SourceQuality "1"]
[TimeControl "40/6000+30:20/3000+30:900+30"]

{[%evp 13,24,68,64,67,56,60,63,54,42,0,0,0,0]} 1. e4 {[%emt 0:00:02]} e5 {[%emt 0:08:09]} 2. Nf3 {[%emt 0:00:12]} Nc6 {[%emt 0:00:07]} 3. Bb5 {[%emt 0:02:09]} a6 {[%emt 0:00:23]} 4. Ba4 {[%emt 0:00:08]} d6 {[%emt 0:07:49]} 5. O-O {[%emt 0:00:24][%cal Bh1f1,Bf1d1,Bd1d4][%mdl 32]} Bg4 {[%emt 0:00:05]} 6. h3 {[%emt 0:01:21]} h5 {[%emt 0:00:04]} 7. Bxc6+ {[%emt 0:02:53]} bxc6 {[%emt 0:00:40]} 8. d4 $1 {[%emt 0:00:08] C72: Ruy Lopez: Deferred Steinitz: 5 0-0.} ({Much weaker is} 8. hxg4 hxg4 9. Re1 gxf3 10. Qxf3 Qh4 $15) 8... Bxf3 {[%emt 0:00:05]} 9. Qxf3 {[%emt 0:00:11] Qc3 would be deadly.} exd4 {[%emt 0:00:02]} 10. Rd1 {[%emt 0:04:07] White is more active.} Qf6 {[%emt 0:00:05]} 11. Qxf6 {[%emt 0:14:56]} Nxf6 {[%emt 0:00:19]} 12. Rxd4 {[%emt 0:00:05]} Nd7 {[%emt 0:00:14] [#] Black took control after the opening.   Weighted Error Value: White=0.10 (very precise) /Black=0.00 (flawless)} {Predecessor:} 13. Nc3 $146 g6 14. Rb4 Bg7 15. Bd2 Nb6 16. Nd1 a5 17. Rb3 a4 18. Rd3 a3 19. Bc3 axb2 20. Nxb2 Bxc3 21. Rxc3 Kd7 22. Rf3 {½-½ Van Buren,H (1854)-Torres Valdes,F (1853) CUB-USA email 2013 [25]} 1/2-1/2

[Event "82nd Italian Championship 2023"]
[Site "Brescia"]
[Date "2023.12.07"]
[Round "9.1"]
[White "Lodici, Lorenzo"]
[Black "Santagati, Alessandro"]
[Result "0-1"]
[ECO "D36"]
[WhiteElo "2550"]
[BlackElo "2245"]
[Annotator "TA"]
[PlyCount "154"]
[EventDate "2023.11.28"]
[EventType "tourn"]
[EventCountry "ITA"]
[SourceTitle "playchess.com"]
[Source "ChessBase"]
[SourceQuality "1"]
[TimeControl "40/6000+30:20/3000+30:900+30"]

{[%evp 20,154,30,34,27,6,24,0,26,16,24,24,20,11,22,15,45,43,87,43,29,24,28,18,22,12,56,49,64,55,65,56,57,46,32,29,36,40,32,33,59,63,81,93,81,20,142,146,155,0,0,0,0,0,8,-48,177,161,162,145,194,122,200,199,365,352,415,399,367,189,168,169,500,493,464,-43,-43,-43,-44,-672,-665,-636,-664,-664,-664,-664,-638,-654,-639,-626,-589,-613,-543,-530,-522,-482,-481,-695,-672,-610,-439,-434,-425,-405,-356,-331,-225,-671,-698,-686,-664,-1065,-1049,-29972,-29973,-29968,-29971,-29965,-29970,-29975,-29976,-29983,-29984,-29984,-29985,-29985,-29986,-29986,-29987,-29987,-29988,-29988,-29989,-29989,-29990,-29990,-29991]} 1. d4 {[%emt 0:10:06]} d5 {[%emt 0:00:46]} 2. c4 {[%emt 0:00:05]} e6 {[%emt 0:00:03]} 3. Nc3 {[%emt 0:00:06]} Nf6 {[%emt 0:00:04]} 4. cxd5 {[%emt 0:00:05]} exd5 {[%emt 0:00:04]} 5. Bg5 {[%emt 0:00:05]} Be7 {[%emt 0:00:52]} 6. e3 {[%emt 0:00:06]} c6 {[%emt 0:00:08]} 7. Bd3 {[%emt 0:02:15]} Nbd7 {[%emt 0:00:15]} 8. Qc2 {[%emt 0:10:32]} Nh5 {[%emt 0:00:35]} 9. Bxe7 {[%emt 0:00:04]} Qxe7 {[%emt 0:00:09]} 10. Nge2 {[%emt 0:00:05]} Nb6 {[%emt 0:00:42]} 11. O-O {[%emt 0:00:18] 11.h3 is more advanced technology.} (11. Bxh7 g6 12. Bxg6 fxg6 13. Qxg6+ Kd8 $17) 11... g6 {[%emt 0:00:42] D36: Queen's Gambit Declined: Exchange Variation: Main line (5 Bg5 c6 6 Qc2).} 12. Rae1 {[%emt 0:00:21]} O-O {[%emt 0:00:19]} 13. Nc1 {[%emt 0:00:22]} f5 {[%emt 0:10:05] The position is equal.} 14. Nb3 {[%emt 0:00:38]} Be6 {[%emt 0:01:54]} 15. Nc5 {[%emt 0:02:17] [#]} Nf6 $146 {[%emt 0:01:49]} ({Predecessor:} 15... Rae8 16. b4 a6 17. a4 Bc8 18. b5 axb5 19. axb5 Qg5 20. f4 Qe7 21. bxc6 bxc6 {1-0 Bekker Jensen,D (2259)-Sorensen,P (2061) Copenhagen Challenge 2015 (3)}) 16. f3 {[%emt 0:00:33]} Rae8 {[%emt 0:03:04]} 17. b4 {[%emt 0:05:54]} a6 {[%emt 0:04:42]} 18. a4 {[%emt 0:03:36]} Qg7 {[%emt 0:11:39]} 19. Qb3 {[%emt 0:09:43]} Bc8 {[%emt 0:06:47]} 20. b5 {[%emt 0:07:23]} axb5 {[%emt 0:02:11]} 21. axb5 {[%emt 0:00:04]} Nbd7 {[%emt 0:01:20]} 22. N5a4 {[%emt 0:01:08]} Kh8 {[%emt 0:01:32]} 23. Qc2 {[%emt 0:04:51]} Qh6 {[%emt 0:04:41]} 24. Qd2 {[%emt 0:02:44]} Re6 {[%emt 0:03:58]} 25. Re2 {[%emt 0:00:17]} Rfe8 {[%emt 0:03:01]} 26. Rfe1 {[%emt 0:00:06]} Qf8 {[%emt 0:05:08]} 27. Rc1 {[%emt 0:05:44]} Qb4 {[%emt 0:05:53]} 28. g3 {[%emt 0:03:06]} Kg7 {[%emt 0:17:45]} 29. Ree1 {[%emt 0:04:33]} h5 {[%emt 0:02:06][%cal Oh5h4]} 30. h4 {[%emt 0:02:37]} Nf8 {[%emt 0:15:19]} 31. Nc5 {[%emt 0:03:25]} R6e7 {[%emt 0:02:47]} 32. Bb1 {[%emt 0:07:07]} ({White should try} 32. Bf1 $16 {Black must now prevent Ra1.} N8d7 33. Rb1) 32... b6 {[%emt 0:02:19]} (32... N8d7 $1 $11) 33. Nd3 $36 {[%emt 0:01:56][%mdl 2048] White is in control.} Qd6 {[%emt 0:00:07]} 34. Ne2 {[%emt 0:07:13]} ({Better is} 34. bxc6 $1 $16 {aiming for Ne5.} Qxg3+ 35. Qg2 Qxh4 36. Ne5) 34... c5 $1 $11 {[%emt 0:00:55]} 35. dxc5 {[%emt 0:03:09]} bxc5 {[%emt 0:00:05]} 36. Rxc5 {[%emt 0:00:37] And now Rc6 would win.} Rxe3 {[%emt 0:00:58] [#]} 37. Rxc8 {[%emt 0:00:10]} (37. Rc6 $1 $11 Qe7 38. Kf2) 37... Rxe2 $2 {[%emt 0:00:34]} (37... Qb6 $1 $15 {keeps the upper hand.} 38. Rc6 (38. Rc5 $2 N8d7 $19) 38... Rxd3+ {[%mdl 64] Discovered Attack} 39. Rxb6 Rxd2) 38. Rxe2 $18 {[%emt 0:00:05]} Rxc8 {[%emt 0:00:46]} 39. Kg2 {[%emt 0:01:38]} Ne6 {[%emt 0:01:15]} (39... Rb8 $16) 40. Ne5 {[%emt 0:03:21]} ({White should play} 40. Qe3 $1 $18 {[%cal Re3e6]} Nc5 41. Qd4) 40... d4 {[%emt 0:02:28]} (40... Re8 $16) 41. Ba2 {[%emt 0:55:01]} d3 $2 {[%emt 0:18:13]} (41... Nd5 42. Nc4 Qe7) 42. Nxd3 {[%emt 0:00:00]} (42. Qxd3 Qxd3 43. Nxd3 Nd4 $14) 42... Nd4 {[%emt 0:02:43][%cal Oc8c2]} 43. Nf4 $1 {[%emt 0:00:00]} ({Not} 43. Ne5 $2 Rc2 44. Nc6 Qxg3+ 45. Kxg3 Nxe2+ $19) 43... Kh7 {[%emt 0:05:00]} (43... Rc2 $2 44. Qxd4 Rxe2+ 45. Nxe2 $18) 44. Qd3 {[%emt 0:00:00]} (44. Bf7 $142) 44... Qb4 {[%emt 0:04:14]} 45. Rf2 $1 {[%emt 0:00:00] Qe3 is the strong threat.} Rc3 $2 {[%emt 0:03:42]} (45... Rc1 {is tougher.}) 46. Qd2 {[%emt 0:00:00]} Qc5 {[%emt 0:03:45][%cal Od4f3]} 47. Bf7 $2 {[%emt 0:00:00] [#]} (47. Nxg6 $18 Rc2 48. Nf8+ {[%mdl 64] Deflection} Qxf8 49. Qxd4) 47... Nxf3 $1 $15 {[%emt 0:05:45] Excellent horsemanship.} 48. Bxg6+ {[%emt 0:00:00]} (48. Rxf3 $2 Rc2 49. Rf2 (49. Bxg6+ $2 {too greedy.} Kh6 $19) 49... Rxd2 50. Rxd2 Kh6 $19) 48... Kh6 {[%emt 0:06:24] Really sharp!} 49. Qd8 {[%emt 0:00:00][%mdl 8192] [#] Black continues to play with concentration.} (49. Rxf3 $2 {loses.} Rc2 $19) (49. Qd1 $15) 49... Qxf2+ $3 $19 {[%emt 0:00:20][%mdl 512]} 50. Kxf2 {[%emt 0:00:00][%cal Rd8f8] [#]} Ng4+ $1 {[%emt 0:00:07]} 51. Kf1 {[%emt 0:00:00][%cal Rd8h8]} Rc1+ {[%emt 0:00:25]} 52. Ke2 {[%emt 0:00:00][%cal Rd8f8]} Rc2+ {[%emt 0:00:24]} 53. Kd3 {[%emt 0:00:00][%cal Rd8f8]} Rd2+ {[%emt 0:00:19][%mdl 64] Skewer} 54. Kc3 {[%emt 0:00:00][%cal Rd8f8]} Rxd8 {[%emt 0:00:23]} 55. Bxf5 {[%emt 0:00:00]} Ne3 {[%emt 0:01:32]} 56. Be4 {[%emt 0:00:00]} Nd2 {[%emt 0:01:11]} 57. Bc6 {[%emt 0:00:00]} Ndf1 {[%emt 0:00:49]} 58. Kb4 {[%emt 0:00:00]} (58. Ne6 $142 Rc8 59. Kd4) 58... Nxg3 {[%emt 0:00:28] Strongly threatening ...Rd4+.} 59. Kc5 {[%emt 0:00:00] Dodges Rd4} Ngf5 {[%emt 0:01:08]} 60. b6 {[%emt 0:00:00]} Nxh4 {[%emt 0:01:10] ...Ng6 would be deadly.} 61. b7 {[%emt 0:14:27]} Ng6 {[%emt 0:17:25]} 62. Ne6 {[%emt 0:01:50]} Rh8 {[%emt 0:00:00] Threatens to win with ...Ne5.} 63. Bd7 $2 {[%emt 0:00:00]} (63. Nc7 Rd8 64. Na6) 63... Rb8 {[%emt 0:00:00]} 64. Kb6 {[%emt 0:00:00]} Ne5 {[%emt 0:00:00]} 65. Bb5 {[%emt 0:00:00]} N3c4+ {[%emt 0:00:00]} 66. Kc7 {[%emt 0:00:00] [#]} Rxb7+ $3 {[%emt 0:00:00] Black mates.} 67. Kxb7 {[%emt 0:00:00] KBN-KNN} Nd6+ {[%emt 0:00:07]} 68. Kb6 {[%emt 0:00:00]} Nxb5 {[%emt 0:00:11]} 69. Kxb5 {[%emt 0:00:00] KN-KN} h4 {[%emt 0:00:16][%cal Bh5h4,Bh4h3,Bh3h2][%mdl 32]} 70. Nc5 {[%emt 0:00:00]} h3 {[%emt 0:01:02]} 71. Ne4 {[%emt 0:00:00]} h2 {[%emt 0:00:35]} 72. Nf2 {[%emt 0:00:33]} Kg5 {[%emt 0:00:42]} 73. Nh1 {[%emt 0:00:03]} Kf4 {[%emt 0:00:43]} 74. Kc5 {[%emt 0:00:01]} Kf3 {[%emt 0:00:24]} 75. Kd4 {[%emt 0:00:02]} Ng4 {[%emt 0:00:13]} 76. Kd3 {[%emt 0:00:22]} Nf2+ {[%emt 0:00:19]} 77. Kd2 {[%emt 0:00:05]} Nxh1 {[%emt 0:00:15] Beautiful play by Santagati!   Weighted Error Value: White=0.36/Black=0.33} 0-1

[Event "82nd Italian Championship 2023"]
[Site "Brescia"]
[Date "2023.12.07"]
[Round "9.2"]
[White "Brunello, Sabino"]
[Black "Dvirnyy, Danyyil"]
[Result "1/2-1/2"]
[ECO "D78"]
[WhiteElo "2492"]
[BlackElo "2495"]
[Annotator "RC"]
[PlyCount "55"]
[EventDate "2023.11.28"]
[EventType "tourn"]
[EventCountry "ITA"]
[SourceTitle "playchess.com"]
[Source "ChessBase"]
[SourceQuality "1"]
[TimeControl "40/6000+30:20/3000+30:900+30"]

1. c4 {[%emt 0:02:31]} c6 {[%emt 0:00:20]} 2. Nf3 {[%emt 0:02:17]} d5 {[%emt 0:00:11]} 3. g3 {[%emt 0:00:11]} g6 {[%emt 0:00:36]} 4. Bg2 {[%emt 0:03:08]} Bg7 {[%emt 0:00:09]} 5. O-O {[%emt 0:00:04]} Nf6 {[%emt 0:03:03]} 6. b3 {[%emt 0:05:44]} Ne4 {[%emt 0:01:31]} 7. d4 {[%emt 0:00:10]} O-O {[%emt 0:00:09]} 8. Bb2 {[%emt 0:03:17]} Bf5 {[%emt 0:01:13]} 9. Nc3 {[%emt 0:15:09]} Nxc3 {[%emt 0:03:40]} 10. Bxc3 {[%emt 0:00:04]} Be4 {[%emt 0:00:07]} 11. Rc1 {[%emt 0:03:51]} a5 {[%emt 0:05:20]} 12. e3 {[%emt 0:12:16]} e6 {[%emt 0:05:48]} 13. Qe2 {[%emt 0:05:57]} Nd7 {[%emt 0:00:54]} 14. Rfd1 {[%emt 0:01:25]} Qe7 {[%emt 0:16:57]} 15. Bf1 {[%emt 0:18:23]} Bxf3 {[%emt 0:03:38]} 16. Qxf3 {[%emt 0:00:03]} Nf6 {[%emt 0:00:08]} 17. Be1 {[%emt 0:03:00]} Ra7 {[%emt 0:01:03]} 18. Rc2 {[%emt 0:00:59]} Rd8 {[%emt 0:03:49]} 19. a4 {[%emt 0:04:22]} Ne4 {[%emt 0:11:00]} 20. Qe2 {[%emt 0:03:03]} Nd6 {[%emt 0:00:55]} 21. Rb1 {[%emt 0:06:12]} h5 {[%emt 0:01:19]} 22. Qf3 {[%emt 0:07:17]} f5 {[%emt 0:11:31]} 23. Bd3 {[%emt 0:00:25]} Qf7 {[%emt 0:00:22]} 24. Qd1 {[%emt 0:02:35]} g5 {[%emt 0:02:54]} 25. cxd5 {[%emt 0:03:11]} exd5 {[%emt 0:00:47]} 26. b4 {[%emt 0:00:16]} axb4 {[%emt 0:01:09]} 27. Bxb4 {[%emt 0:00:10]} Nc4 {[%emt 0:01:44]} 28. Qc1 {[%emt 0:08:30]} 1/2-1/2

[Event "82nd Italian Championship 2023"]
[Site "Brescia"]
[Date "2023.12.07"]
[Round "9.3"]
[White "Lumachi, Gabriele"]
[Black "David, Alberto"]
[Result "1/2-1/2"]
[ECO "E51"]
[WhiteElo "2395"]
[BlackElo "2532"]
[Annotator "TA"]
[PlyCount "95"]
[EventDate "2023.11.28"]
[EventType "tourn"]
[EventCountry "ITA"]
[SourceTitle "playchess.com"]
[Source "ChessBase"]
[SourceQuality "1"]
[TimeControl "40/6000+30:20/3000+30:900+30"]

{[%evp 13,95,0,0,0,0,0,0,0,0,0,0,0,0,0,0,0,0,0,5,0,0,0,2,0,8,0,10,-15,0,0,0,0,0,0,0,0,0,0,0,0,0,-8,-8,-5,-8,-8,0,-6,0,-9,-9,-9,0,-9,0,0,0,0,0,0,0,0,0,0,0,0,0,0,0,0,0,0,0,0,0,0,0,0,0,0,0,0,0,0]} 1. d4 {[%emt 0:00:05]} Nf6 {[%emt 0:00:22]} 2. c4 {[%emt 0:00:10]} e6 {[%emt 0:00:15]} 3. Nc3 {[%emt 0:01:26]} Bb4 {[%emt 0:00:24]} 4. e3 {[%emt 0:00:23]} O-O {[%emt 0:01:16]} 5. Bd2 {[%emt 0:00:36]} b6 {[%emt 0:05:33]} 6. Nf3 {[%emt 0:02:57]} d5 {[%emt 0:01:09]} 7. cxd5 {[%emt 0:00:19]} exd5 {[%emt 0:00:06] The position is equal.} 8. Rc1 {[%emt 0:00:15] E51: Nimzo-Indian: Rubinstein: 4...0-0 5 Nf3 d5.} Be7 {[%emt 0:03:32]} 9. Bd3 {[%emt 0:00:41]} c5 {[%emt 0:03:38]} 10. O-O {[%emt 0:00:19]} Nc6 {[%emt 0:04:38]} 11. Ne5 {[%emt 0:00:28]} Bb7 {[%emt 0:05:17]} 12. Be1 {[%emt 0:01:56] 12.a3 is the fancy move.} Bd6 {[%emt 0:04:57]} 13. f4 {[%emt 0:01:11]} cxd4 {[%emt 0:00:31]} 14. Nxc6 {[%emt 0:00:16]} Bxc6 {[%emt 0:00:04]} 15. exd4 {[%emt 0:00:55] [#]} a6 $146 {[%emt 0:16:16]} ({Predecessor:} 15... Qd7 16. Qc2 Bb4 17. Ne2 Ba4 18. Qc7 Qxc7 19. Rxc7 Bd6 20. Rc1 Rfe8 21. Nc3 Bc6 {½-½ Bluebaum,M (2643)-Alekseenko,K (2674) FIDE Chess.com Grand Swiss 2019 (5)}) 16. Bh4 {[%emt 0:01:13]} Be7 {[%emt 0:05:15]} 17. Qc2 {[%emt 0:07:05]} h6 {[%emt 0:01:05]} 18. Rce1 {[%emt 0:00:19]} Ra7 {[%emt 0:02:36]} 19. Nd1 {[%emt 0:36:58]} Bb5 {[%emt 0:07:46]} 20. Ne3 {[%emt 0:00:52]} Ne4 {[%emt 0:00:43]} 21. Bxe7 {[%emt 0:08:55]} Rxe7 {[%emt 0:00:20]} 22. Bxb5 {[%emt 0:05:39]} axb5 {[%emt 0:00:19]} 23. Qc6 {[%emt 0:05:18]} Nd2 {[%emt 0:29:30]} 24. Nxd5 {[%emt 0:09:37]} Rd7 {[%emt 0:02:14]} 25. Rf2 {[%emt 0:03:40]} (25. Nxb6 $2 {too greedy.} Rxd4 26. Rf2 Rd6 $19) 25... Rxd5 {[%emt 0:02:09]} 26. Rxd2 {[%emt 0:00:13]} Rxd4 {[%emt 0:00:13]} 27. Rde2 {[%emt 0:00:53]} Rxf4 {[%emt 0:09:21]} 28. Qxb5 {[%emt 0:00:31]} Qd4+ {[%emt 0:01:00]} 29. Kh1 {[%emt 0:00:31]} Qf6 {[%emt 0:00:38] [#] ( -> ...Rf1+)} 30. Kg1 {[%emt 0:00:51] Wards off Rf1+} Qd4+ {[%emt 0:01:27]} 31. Kh1 {[%emt 0:00:08]} Rd8 {[%emt 0:01:55]} 32. h3 {[%emt 0:02:52]} Rd5 {[%emt 0:01:14]} 33. Qe8+ {[%emt 0:02:32]} Kh7 {[%emt 0:00:04]} 34. Re4 {[%emt 0:00:43]} Rxe4 {[%emt 0:00:20]} 35. Qxe4+ {[%emt 0:00:15]} Qxe4 {[%emt 0:00:30]} 36. Rxe4 $11 {[%emt 0:00:06][%mdl 4096] Endgame KR-KR} f5 {[%emt 0:00:24]} 37. Rb4 {[%emt 0:12:30]} b5 {[%emt 0:00:08]} 38. b3 {[%emt 0:00:38][%cal Bb2b3,Bb3a4,Ba4a5,Ba5a6][%mdl 32]} g5 {[%emt 0:00:28]} 39. a4 {[%emt 0:00:18]} bxa4 {[%emt 0:00:08]} 40. bxa4 {[%emt 0:00:11]} Rd1+ {[%emt 0:00:10]} 41. Kh2 {[%emt 0:50:22]} f4 {[%emt 0:50:10]} 42. Rb7+ {[%emt 0:00:00]} Kg6 {[%emt 0:00:00]} 43. Rb6+ {[%emt 0:00:00]} Kg7 {[%emt 0:00:00]} 44. a5 {[%emt 0:00:00]} Ra1 {[%emt 0:00:00]} 45. a6 {[%emt 0:00:00]} h5 {[%emt 0:00:00]} 46. Rb7+ {[%emt 0:00:00]} Kg6 {[%emt 0:00:00]} 47. Rb6+ {[%emt 0:00:00]} Kg7 {[%emt 0:00:00]} 48. Rb7+ {[%emt 0:00:00] An interesting draw.   Weighted Error Value: White=0.02 (flawless) /Black=0.01 (flawless)} 1/2-1/2

[Event "82nd Italian Championship 2023"]
[Site "Brescia"]
[Date "2023.12.07"]
[Round "9.4"]
[White "Basso, Pier Luigi"]
[Black "Iermito, Sebastian"]
[Result "1/2-1/2"]
[ECO "D03"]
[WhiteElo "2483"]
[BlackElo "2524"]
[Annotator "RC"]
[PlyCount "20"]
[EventDate "2023.11.28"]
[EventType "tourn"]
[EventCountry "ITA"]
[SourceTitle "playchess.com"]
[Source "ChessBase"]
[SourceQuality "1"]
[TimeControl "40/6000+30:20/3000+30:900+30"]

1. d4 {[%emt 0:00:02]} d5 {[%emt 0:00:05]} 2. Nf3 {[%emt 0:00:05]} Nf6 {[%emt 0:00:05]} 3. c3 {[%emt 0:00:05]} e6 {[%emt 0:01:28]} 4. Bg5 {[%emt 0:00:18]} c5 {[%emt 0:02:01]} 5. e3 {[%emt 0:00:08]} Nc6 {[%emt 0:01:19]} 6. Nbd2 {[%emt 0:00:07]} Be7 {[%emt 0:01:59]} 7. Bd3 {[%emt 0:00:09]} O-O {[%emt 0:00:36]} 8. O-O {[%emt 0:00:09]} b6 {[%emt 0:00:40]} 9. Qe2 {[%emt 0:00:08]} Bb7 {[%emt 0:03:33]} 10. Rad1 {[%emt 0:01:54]} h6 {[%emt 0:03:54]} 1/2-1/2

[Event "82nd Italian Championship 2023"]
[Site "Brescia"]
[Date "2023.12.07"]
[Round "9.5"]
[White "Gilevych, Artem"]
[Black "Carnicelli, Valerio"]
[Result "1/2-1/2"]
[ECO "E73"]
[WhiteElo "2416"]
[BlackElo "2423"]
[Annotator "RC"]
[PlyCount "32"]
[EventDate "2023.11.28"]
[EventType "tourn"]
[EventCountry "ITA"]
[SourceTitle "playchess.com"]
[Source "ChessBase"]
[SourceQuality "1"]
[TimeControl "40/6000+30:20/3000+30:900+30"]

1. d4 {[%emt 0:01:08]} Nf6 {[%emt 0:00:47]} 2. c4 {[%emt 0:00:02]} g6 {[%emt 0:00:06]} 3. Nc3 {[%emt 0:00:05]} Bg7 {[%emt 0:00:04]} 4. e4 {[%emt 0:00:57]} d6 {[%emt 0:00:03]} 5. Be2 {[%emt 0:00:16]} O-O {[%emt 0:00:06]} 6. Be3 {[%emt 0:00:13]} e5 {[%emt 0:00:06]} 7. d5 {[%emt 0:00:50]} Na6 {[%emt 0:00:06]} 8. h4 {[%emt 0:02:37]} Nc5 {[%emt 0:07:33]} 9. Qc2 {[%emt 0:00:06]} h5 {[%emt 0:03:08]} 10. f3 {[%emt 0:06:08]} a5 {[%emt 0:01:11]} 11. Nh3 {[%emt 0:01:24]} c6 {[%emt 0:04:08]} 12. Nf2 {[%emt 0:02:22]} cxd5 {[%emt 0:07:28]} 13. cxd5 {[%emt 0:02:05]} a4 {[%emt 0:03:05]} 14. Nb5 {[%emt 0:23:30]} b6 {[%emt 0:06:48]} 15. Qd2 {[%emt 0:14:48]} Bb7 {[%emt 0:13:31]} 16. O-O-O {[%emt 0:11:51]} Qd7 {[%emt 0:07:57]} 1/2-1/2